fUST/lending_fUST_20240422
["ID","MTS","AMOUNT","RATE_DAILY","PERIOD"]
[323179167,1713778242200,-500.0,0.00021917,2]
[323179168,1713778242211,-498.57167416,0.00021917,2]
[323179169,1713778242229,-1.42832584,0.00021917,2]
[323179170,1713778242240,-500.0,0.00021917,2]
[323179171,1713778242250,-500.0,0.00021917,2]
[323179172,1713778242261,-483.94318884,0.00021917,2]
[323179182,1713778243547,-28.10379567,0.00021917,2]
[323179183,1713778243557,-500.0,0.00021917,2]
[323179184,1713778243568,-500.0,0.00021917,2]
[323179185,1713778243578,-500.0,0.00021917,2]
[323179186,1713778243589,-786.19,0.00021917,2]
[323179187,1713778243600,-500.0,0.00021917,2]
[323179188,1713778243610,-500.0,0.00021917,2]
[323179189,1713778243621,-500.0,0.00021917,2]
[323179190,1713778243632,-500.0,0.00021917,2]
[323179191,1713778243644,-594.65,0.00021917,2]
[323179192,1713778243655,-500.0,0.00021917,2]
[323179193,1713778243666,-500.0,0.00021917,2]
[323179194,1713778243676,-500.0,0.00021917,2]
[323179197,1713778243687,-500.0,0.00021917,2]
[323179198,1713778243698,-500.0,0.00021917,2]
[323179199,1713778243708,-500.0,0.00021917,2]
[323179200,1713778243721,-500.0,0.00021917,2]
[323179201,1713778243732,-500.0,0.00021917,2]
[323179202,1713778243743,-500.0,0.00021917,2]
[323179203,1713778243754,-500.00008,0.00021917,2]
[323179204,1713778243765,-500.0,0.00021917,2]
[323179205,1713778243775,-500.0,0.00021917,2]
[323179206,1713778243786,-500.0,0.00021917,2]
[323179207,1713778243796,-265.06538984,0.00021917,2]
[323179208,1713778243807,-609.62,0.00021917,2]
[323179209,1713778243818,-500.0,0.00021917,2]
[323179210,1713778243829,-500.0,0.00021917,2]
[323179211,1713778243841,-500.0,0.00021917,2]
[323179212,1713778243852,-500.0,0.00021917,2]
[323179213,1713778243863,-599.81,0.00021917,2]
[323179214,1713778243875,-500.0,0.00021917,2]
[323179215,1713778243886,-500.0,0.00021917,2]
[323179216,1713778243898,-500.0,0.00021917,2]
[323179217,1713778243909,-1000.14,0.00021917,2]
[323179218,1713778243919,-932.1,0.00021917,2]
[323179219,1713778243931,-500.0,0.00021917,2]
[323179220,1713778243943,-500.0,0.00021917,2]
[323179221,1713778243955,-500.0,0.00021917,2]
[323179222,1713778243965,-500.0,0.00021917,2]
[323179223,1713778243976,-500.0,0.00021917,2]
[323179224,1713778243987,-500.0,0.00021917,2]
[323179225,1713778243998,-694.38,0.00021917,2]
[323179226,1713778244008,-500.0,0.00021917,2]
[323179227,1713778244019,-500.0,0.00021917,2]
[323179228,1713778244029,-500.0,0.00021917,2]
[323179229,1713778244038,-720.7,0.00021917,2]
[323179230,1713778244048,-500.0,0.00021917,2]
[323179231,1713778244057,-2478.99,0.00021917,2]
[323179232,1713778244066,-500.0,0.00021917,2]
[323179233,1713778244075,-500.0,0.00021917,2]
[323179235,1713778244085,-500.0,0.00021917,2]
[323179236,1713778244094,-327.21635161,0.00021917,2]
[323179237,1713778244103,-500.0,0.00021917,2]
[323179238,1713778244288,-682.23,0.00021917,2]
[323179239,1713778244301,-1799.28,0.00021917,2]
[323179240,1713778244310,-500.0,0.00021917,2]
[323179241,1713778244320,-500.0,0.00021917,2]
[323179242,1713778244329,-681.81,0.00021917,2]
[323179243,1713778244338,-509.72,0.00021917,2]
[323179244,1713778244347,-500.0,0.00021917,2]
[323179245,1713778244357,-3357.51653899,0.00021917,2]
[323179253,1713778274723,3023.75393129,0.00019817,2]
[323179293,1713778529366,161.5378426,0.0002017,2]
[323179294,1713778536383,400.0,0.00019178,2]
[323179296,1713778562073,1509.6146025,0.0001975,2]
[323179297,1713778571701,21076.3804583,0.0001977,2]
[323179299,1713778576105,2015.8359542,0.00019817,2]
[323179301,1713778661623,506.82078651,0.00019817,2]
[323179302,1713778673646,10114.69792276,0.0002,2]
[323179303,1713778676440,2131.09071175,0.0002,10]
[323179304,1713778676471,2108.85144934,0.0002,10]
[323179306,1713778693575,3458.53142906,0.0002,2]
[323179307,1713778694406,608.2755409,0.0002,10]
[323179310,1713778737202,168.923582,0.00019855,2]
[323179311,1713778738786,904.208459,0.00019995,2]
[323179312,1713778745291,150.5,0.000241,35]
[323179313,1713778745879,150.5,0.0002409,35]
[323179314,1713778747723,150.5,0.0002408,35]
[323179324,1713778830796,250.0,0.00019611,2]
[323179325,1713778855509,11752.0,0.00025,30]
[323179329,1713778877228,1444.54113874,0.00019817,2]
[323179332,1713778996502,585.3341027,0.00019466,2]
[323179333,1713779044920,14414.6658973,0.00019438,2]
[323179334,1713779044951,10485.3341027,0.00019438,2]
[323179337,1713779061010,1668.6927434,0.00019437,2]
[323179338,1713779107693,219.73,0.000241,35]
[323179341,1713779195191,-1620.16401568,0.00020328,2]
[323179342,1713779195215,-603.23240406,0.00020329,2]
[323179343,1713779195237,-206.02600307,0.00020329,2]
[323179344,1713779195259,-549.48258406,0.00020329,2]
[323179345,1713779195280,-157.00666973,0.00020329,2]
[323179346,1713779195299,-689.33608369,0.0002033,2]
[323179347,1713779195320,-189.15723965,0.0002033,2]
[323179348,1713779195341,-1731.41302976,0.00020331,2]
[323179349,1713779195360,-596.73090927,0.00020425,2]
[323179350,1713779195382,-300.0,0.00020425,2]
[323179351,1713779195402,-300.0,0.00020425,2]
[323179352,1713779195422,-1366.32403983,0.00020425,2]
[323179353,1713779202716,166.949159,0.00019178,2]
[323179354,1713779261373,452.104229,0.00019426,2]
[323179359,1713779347675,721.67755642,0.0001829,2]
[323179360,1713779359573,1514.98640104,0.00020224,2]
[323179362,1713779372119,421.79165706,0.00020218,2]
[323179364,1713779405329,389.74625859,0.00020219,2]
[323179365,1713779420493,11332.74473889,0.0002018,2]
[323179366,1713779420524,54209.83478844,0.0002018,2]
[323179421,1713779433035,-160.45066493,0.00020179,2]
[323179422,1713779433045,-210.18594275,0.00020179,2]
[323179423,1713779433054,-500.0,0.00020179,2]
[323179424,1713779433066,-285.85817738,0.00020179,2]
[323179425,1713779433078,-214.14182262,0.00020179,2]
[323179426,1713779433089,-227.60037396,0.00020179,2]
[323179427,1713779433098,-313.82922098,0.00020179,2]
[323179428,1713779433108,-92274.96997878,0.0002018,2]
[323179458,1713779438707,-3130.60253076,0.00020178,7]
[323179460,1713779438717,-505.99866513,0.00020179,2]
[323179462,1713779438726,-503.77124223,0.00020179,2]
[323179464,1713779438735,-500.0,0.00020179,2]
[323179465,1713779438744,-500.0,0.00020179,2]
[323179467,1713779438753,-457.40852823,0.00020179,2]
[323179469,1713779438762,-31291.27918784,0.00020179,2]
[323179470,1713779438771,-285454.08707292,0.0002018,2]
[323179533,1713779441993,-474.15410203,0.00020179,2]
[323179534,1713779442004,-448.51195505,0.00020179,2]
[323179535,1713779442016,-646.49318516,0.0002018,2]
[323179558,1713779443769,-310066.74176158,0.0002018,2]
[323179559,1713779443781,-8308.8729788,0.0002018,2]
[323179573,1713779458085,364.8548493,0.0002,2]
[323179574,1713779479898,1564.82209548,0.000189,2]
[323179575,1713779482024,364.8548493,0.0002,2]
[323179577,1713779499742,154.82968734,0.000189,2]
[323179578,1713779507988,364.8548493,0.0002,2]
[323179580,1713779517740,154.82968734,0.000189,2]
[323179581,1713779534130,364.8548493,0.0002,2]
[323179582,1713779535837,206.19324854,0.000189,2]
[323179583,1713779549988,207.73573258,0.0002,2]
[323179586,1713779581827,1028.76921786,0.00019175,2]
[323179587,1713779581849,19201.64089534,0.00019175,2]
[323179593,1713779659646,225.04654069,0.00020058,2]
[323179595,1713779660726,6023.97910989,0.0002,2]
[323179596,1713779661040,8169.51491753,0.000125,2]
[323179597,1713779664634,225.04654069,0.00020076,2]
[323179598,1713779670673,793.8624363,0.000176,2]
[323179599,1713779673942,183.79565309,0.000191,2]
[323179600,1713779675745,273.14745315,0.0001,2]
[323179601,1713779676105,200.0,0.00019175,2]
[323179602,1713779679309,7359.38575588,0.00018,2]
[323179603,1713779679638,11190.07511954,0.00025,30]
[323179604,1713779683490,172.452536,0.00019178,2]
[323179605,1713779686687,150.12,0.0002,2]
[323179607,1713779691301,236.63296529,0.00019,2]
[323179608,1713779691633,154.95351395,0.00016125,2]
[323179609,1713779694104,200.0,0.00019175,2]
[323179611,1713779739353,1620.16401568,0.0002015,2]
[323179612,1713779743292,1550.48057045,0.0002015,2]
[323179613,1713779743891,173.19355555,0.0002015,2]
[323179614,1713779747846,41656.16185832,0.000201,2]
[323179615,1713779747870,958343.83814168,0.000201,2]
[323179618,1713779767840,1060.879204,0.00019161,2]
[323179620,1713779781305,1417.74280971,0.000189,2]
[323179621,1713779784537,-2789.43456698,0.00020179,7]
[323179622,1713779807743,1730.18251051,0.00020048,2]
[323179623,1713779819542,53269.81748949,0.000201,2]
[323179624,1713779819564,946730.18251051,0.000201,2]
[323179628,1713779856911,1526.51944111,0.00020048,2]
[323179631,1713779874890,14549.73636306,0.00020048,2]
[323179632,1713779881798,692.13548975,0.00020048,2]
[323179633,1713779881828,154.92253873,0.00020048,2]
[323179634,1713779887591,155.1210095,0.00020048,2]
[323179635,1713779891312,197.49701762,0.00020048,2]
[323179636,1713779899769,692.13548975,0.00020048,2]
[323179637,1713779899801,385.66913865,0.00020048,2]
[323179638,1713779899835,154.92253873,0.00020048,2]
[323179639,1713779901547,155.15878482,0.00020048,2]
[323179640,1713779902841,154.82968734,0.00020048,2]
[323179641,1713779906904,16076.25580417,0.00020048,2]
[323179642,1713779908379,13982.87571307,0.0002008,2]
[323179643,1713779909006,250.0,0.00019108,2]
[323179644,1713779940263,385.94347715,0.00019108,2]
[323179645,1713779940297,692.57331014,0.00019108,2]
[323179646,1713779940893,154.82968734,0.00019108,2]
[323179647,1713779942035,154.82968734,0.00019108,2]
[323179648,1713779943112,154.82968734,0.00019108,2]
[323179649,1713779943957,180.28293001,0.00019108,2]
[323179650,1713779947647,16087.28363851,0.00019108,2]
[323179653,1713779949788,154.82968734,0.00019108,2]
[323179654,1713779950324,154.82968734,0.00019108,2]
[323179655,1713779954267,691.69766936,0.00019108,2]
[323179656,1713779955387,130938.07053813,0.0002,2]
[323179657,1713779955411,2411.0,0.0002,2]
[323179658,1713779957364,159.25400028,0.00019108,2]
[323179659,1713779958182,154.89156354,0.00019108,2]
[323179660,1713779958281,385.94347715,0.00019108,2]
[323179661,1713779962000,297.13950818,0.00019108,2]
[323179662,1713779965416,8002.77145085,0.00019108,2]
[323179663,1713779965446,1251.53325373,0.00019108,2]
[323179664,1713779967141,235.22187647,0.00019108,2]
[323179665,1713779969791,154.82968734,0.00019108,2]
[323179666,1713779970333,155.01539012,0.00019108,2]
[323179667,1713779980292,385.12046165,0.00019108,2]
[323179668,1713779985828,154.92250164,0.00019108,2]
[323179670,1713780057417,3985.00360414,0.00019108,2]
[323179671,1713780074321,420.12209796,0.00019178,2]
[323179673,1713780082850,945.16187314,0.000189,2]
[323179674,1713780091604,1313.06925381,0.00018996,2]
[323179675,1713780091641,9000.0,0.00018996,2]
[323179676,1713780091676,9000.0,0.00018996,2]
[323179677,1713780091714,5586.93074619,0.00018996,2]
[323179680,1713780107711,1716.67338335,0.0002,6]
[323179682,1713780151008,3673.45333556,0.000189,10]
[323179683,1713780170990,2759.52066565,0.0002,10]
[323179684,1713780179067,3413.06925381,0.00019,2]
[323179685,1713780188397,9000.0,0.0001888,2]
[323179686,1713780191694,344.2532532,0.00017548,2]
[323179687,1713780207749,8655.7467468,0.000185,2]
[323179688,1713780207783,9000.0,0.000185,2]
[323179691,1713780223643,9000.0,0.00018,2]
[323179692,1713780223677,9000.0,0.00018,2]
[323179693,1713780223706,7212.19804076,0.00018,2]
[323179694,1713780223732,7212.19804076,0.00018,2]
[323179695,1713780223981,-12000.0,0.00018,2]
[323179696,1713780224091,-12000.0,0.00018,2]
[323179697,1713780224199,-12000.0,0.00018,2]
[323179698,1713780224309,-12000.0,0.00018,2]
[323179699,1713780224418,-12000.0,0.00018,2]
[323179700,1713780224527,-12000.0,0.00018,2]
[323179701,1713780224647,-12000.0,0.00018,2]
[323179702,1713780224745,-12000.0,0.00018,2]
[323179703,1713780224908,-12000.0,0.00018,2]
[323179704,1713780224951,-12000.0,0.00018,2]
[323179705,1713780225059,-12000.0,0.00018,2]
[323179706,1713780225170,-12000.0,0.00018,2]
[323179707,1713780225275,-12000.0,0.00018,2]
[323179708,1713780225374,-12000.0,0.00018,2]
[323179709,1713780225481,-12000.0,0.00018,2]
[323179710,1713780225587,-12000.0,0.00018,2]
[323179711,1713780225692,-12000.0,0.00018,2]
[323179712,1713780225796,-12000.0,0.00018,2]
[323179713,1713780225901,-12000.0,0.00018,2]
[323179714,1713780226123,-12000.0,0.00018,2]
[323179715,1713780226168,-12000.0,0.00018,2]
[323179716,1713780226229,-12000.0,0.00018,2]
[323179717,1713780226331,-12000.0,0.00018,2]
[323179718,1713780226435,-12000.0,0.00018,2]
[323179719,1713780226534,-12000.0,0.00018,2]
[323179720,1713780226656,-12000.0,0.00018,2]
[323179721,1713780226759,-12000.0,0.00018,2]
[323179722,1713780226890,-12000.0,0.00018,2]
[323179723,1713780226996,-12000.0,0.00018,2]
[323179724,1713780227098,-12000.0,0.00018,2]
[323179725,1713780227200,-12000.0,0.00018,2]
[323179726,1713780227303,-12000.0,0.00018,2]
[323179727,1713780227401,-12000.0,0.00018,2]
[323179728,1713780227515,-12000.0,0.00018,2]
[323179729,1713780227652,-12000.0,0.00018,2]
[323179730,1713780227724,-12000.0,0.00018,2]
[323179731,1713780227844,-12000.0,0.00018,2]
[323179732,1713780227940,-12000.0,0.00018,2]
[323179733,1713780228049,-12000.0,0.00018,2]
[323179734,1713780228161,-12000.0,0.00018,2]
[323179735,1713780228290,-12000.0,0.00018,2]
[323179736,1713780228358,-12000.0,0.00018,2]
[323179737,1713780228463,-12000.0,0.00018,2]
[323179738,1713780228576,-12000.0,0.00018,2]
[323179739,1713780228677,-12000.0,0.00018,2]
[323179740,1713780228791,-12000.0,0.00018,2]
[323179741,1713780228898,-12000.0,0.00018,2]
[323179742,1713780228988,-12000.0,0.00018,2]
[323179743,1713780229094,-12000.0,0.00018,2]
[323179744,1713780229232,-12000.0,0.00018,2]
[323179745,1713780229328,-12000.0,0.00018,2]
[323179746,1713780229410,-12000.0,0.00018,2]
[323179747,1713780229518,-12000.0,0.00018,2]
[323179748,1713780229641,-12000.0,0.00018,2]
[323179749,1713780229752,-12000.0,0.00018,2]
[323179750,1713780229861,-12000.0,0.00018,2]
[323179751,1713780229965,-12000.0,0.00018,2]
[323179752,1713780230073,-12000.0,0.00017999,2]
[323179753,1713780230179,-12000.0,0.00017999,2]
[323179754,1713780230289,-12000.0,0.00017999,2]
[323179755,1713780230673,-12000.0,0.00017999,2]
[323179756,1713780230709,-11148.32683968,0.00017999,2]
[323179757,1713780230735,-851.67316032,0.00018,2]
[323179758,1713780230785,-12000.0,0.00018,2]
[323179759,1713780230855,-12000.0,0.00018,2]
[323179760,1713780230921,-12000.0,0.00018,2]
[323179761,1713780231005,-12000.0,0.00018,2]
[323179762,1713780231048,-12000.0,0.00018,2]
[323179763,1713780231151,-12000.0,0.00018,2]
[323179764,1713780231259,-12000.0,0.00018,2]
[323179765,1713780231363,-12000.0,0.00018,2]
[323179766,1713780231608,-1620.16401568,0.00017999,2]
[323179767,1713780231635,-10379.83598432,0.00018,2]
[323179768,1713780231671,-12000.0,0.00018,2]
[323179769,1713780231755,-12000.0,0.00018,2]
[323179770,1713780231873,-12000.0,0.00018,2]
[323179771,1713780231974,-12000.0,0.00018,2]
[323179772,1713780232085,-12000.0,0.00018,2]
[323179773,1713780232185,-12000.0,0.00018,2]
[323179830,1713780409682,265.37416792,0.00017985,7]
[323179834,1713780423660,265.37416792,0.00017994,7]
[323179841,1713780443645,265.37416792,0.00017985,7]
[323179847,1713780457099,1325.61310091,0.00017888,2]
[323179850,1713780464782,3130.01789446,0.00018,7]
[323179865,1713780479657,309.35184795,0.00017986,7]
[323179876,1713780570161,662.07758282,0.00017899,2]
[323179898,1713780631864,-1677.7484322,0.00017963,2]
[323179899,1713780631874,-300.0,0.00017963,2]
[323179902,1713780631884,-1550.48057045,0.00017964,2]
[323179903,1713780631893,-596.73090927,0.00017965,2]
[323179904,1713780631902,-154.82968734,0.00017966,2]
[323179906,1713780631911,-161.99063186,0.00017966,2]
[323179907,1713780631920,-1620.16401568,0.00017966,2]
[323179908,1713780631929,-267.79755172,0.00017967,2]
[323179971,1713780637830,-819.69005143,0.00017967,2]
[323179972,1713780637839,-564.41327959,0.00017967,2]
[323179973,1713780637849,-300.0,0.00017972,2]
[323179974,1713780637858,-300.0,0.00017972,2]
[323179976,1713780637867,-31291.27918784,0.00017973,2]
[323179978,1713780637876,-7171.2336144,0.00017989,2]
[323179980,1713780637885,-155.27313023,0.00017995,2]
[323179981,1713780637893,-852.9511326,0.00017996,2]
[323179982,1713780637904,-472.16497365,0.00017996,2]
[323179983,1713780637913,-277285.53932661,0.00017998,2]
[323179984,1713780637926,-1135.5354151,0.00017998,2]
[323180038,1713780640781,-207.85032377,0.00017966,2]
[323180039,1713780640790,-14859.59923794,0.00017998,2]
[323180040,1713780640804,-2335.397078,0.00017998,2]
[323180061,1713780642958,-114346.76776971,0.00017998,2]
[323180062,1713780642969,-38270.68227313,0.00017999,2]
[323180063,1713780642978,-603.23240406,0.000185,2]
[323180064,1713780642987,-1053.29610054,0.000189,2]
[323180065,1713780642996,-530.439602,0.00019032,2]
[323180066,1713780643005,-311.82873169,0.00019178,2]
[323180067,1713780643014,-348.78395185,0.00019178,2]
[323180068,1713780643023,-505.99866513,0.00019178,2]
[323180069,1713780643034,-503.77124223,0.00019178,2]
[323180070,1713780643044,-500.0,0.00019178,2]
[323180071,1713780643053,-500.0,0.00019178,2]
[323180072,1713780643062,-457.40852823,0.00019178,2]
[323180074,1713780643074,-239.52358831,0.00019178,2]
[323180075,1713780643084,-168.805312,0.00019178,2]
[323180076,1713780643093,-300.0,0.0001961,2]
[323180077,1713780643103,-420.0,0.00019769,2]
[323180078,1713780643113,-44444.0,0.00019896,2]
[323180079,1713780643122,-707.683191,0.00019993,2]
[323180080,1713780643132,-1000.71106207,0.00019999,2]
[323180081,1713780643141,-677.92303889,0.0002,2]
[323180082,1713780643150,-689.33608369,0.0002,2]
[323180083,1713780643159,-1104.37171878,0.0002,2]
[323180084,1713780643169,-198.68116353,0.0002,2]
[323180085,1713780643178,-155.28137192,0.00020045,2]
[323180086,1713780643187,-198.60458448,0.00020048,2]
[323180087,1713780643197,-1680.76608014,0.00020109,2]
[323180088,1713780643206,-524.44715546,0.00020156,4]
[323180089,1713780643216,-212.71867879,0.00020157,2]
[323180090,1713780643226,-1494.28079523,0.00020174,2]
[323180091,1713780643236,-267.39613437,0.00020423,2]
[323180092,1713780643245,-157.99609559,0.00020423,2]
[323180093,1713780643254,-367.02483549,0.00020424,2]
[323180094,1713780643263,-205.72096113,0.00020424,2]
[323180095,1713780643272,-330.68787593,0.00020428,2]
[323180096,1713780643281,-980.80558353,0.00020428,2]
[323180097,1713780643290,-520.96921547,0.0002054,2]
[323180098,1713780643299,-175.49762761,0.0002054,2]
[323180099,1713780643308,-169.82027797,0.0002054,2]
[323180100,1713780643318,-474.41395909,0.0002054,2]
[323180101,1713780643327,-193.42147421,0.00020541,2]
[323180102,1713780643337,-203.63718011,0.00020541,2]
[323180103,1713780643346,-42170.37103101,0.00020542,2]
[323180104,1713780643355,-482.41713152,0.00020649,2]
[323180105,1713780643364,-281.67851016,0.00020649,2]
[323180106,1713780643375,-1000.0,0.00020737,2]
[323180107,1713780643384,-3354.85746258,0.00021,2]
[323180108,1713780643394,-6437.01294806,0.00021,2]
[323180109,1713780643405,-5000.0,0.000213,2]
[323180110,1713780643414,-159.83537726,0.00021697,2]
[323180111,1713780643424,-419.39507495,0.000217,2]
[323180112,1713780643434,-1000.0,0.00021737,2]
[323180113,1713780643444,-587.0,0.00021746,2]
[323180114,1713780643454,-151.616571,0.00021909,2]
[323180115,1713780643465,-172.805284,0.00021909,2]
[323180116,1713780643475,-675.68473458,0.00021912,2]
[323180117,1713780643484,-309.18895259,0.00021915,2]
[323180118,1713780643493,-549.90202406,0.00021915,2]
[323180119,1713780643502,-309.61299381,0.00021916,2]
[323180120,1713780643512,-223.18319652,0.00021916,2]
[323180121,1713780643521,-500.0,0.00021917,2]
[323180122,1713780643530,-500.0,0.00021917,2]
[323180123,1713780643539,-500.0,0.00021917,2]
[323180124,1713780643548,-500.0,0.00021917,2]
[323180125,1713780643557,-500.0,0.00021917,2]
[323180126,1713780643566,-508.13234628,0.00021917,2]
[323180127,1713780643575,-169.37155114,0.00021917,2]
[323180128,1713780643583,-500.0,0.00021917,2]
[323180129,1713780643592,-500.0,0.00021917,2]
[323180130,1713780643601,-500.0,0.00021917,2]
[323180131,1713780643609,-500.0,0.00021917,2]
[323180132,1713780643619,-500.0,0.00021917,2]
[323180133,1713780643628,-500.0,0.00021917,2]
[323180134,1713780643637,-500.0,0.00021917,2]
[323180135,1713780643646,-500.0,0.00021917,2]
[323180136,1713780643655,-500.0,0.00021917,2]
[323180137,1713780643664,-500.0,0.00021917,2]
[323180138,1713780643673,-500.0,0.00021917,2]
[323180139,1713780643682,-152.5171301,0.00021917,2]
[323180140,1713780643691,-500.0,0.00021917,2]
[323180141,1713780643700,-500.0,0.00021917,2]
[323180142,1713780643709,-2000.0,0.00021917,2]
[323180143,1713780643719,-500.0,0.00021917,2]
[323180144,1713780643728,-981.3,0.00021917,2]
[323180145,1713780643738,-500.0,0.00021917,2]
[323180146,1713780643746,-500.0,0.00021917,2]
[323180147,1713780643755,-500.0,0.00021917,2]
[323180148,1713780643763,-500.0,0.00021917,2]
[323180149,1713780643772,-500.0,0.00021917,2]
[323180150,1713780643782,-505.15359985,0.00021917,2]
[323180151,1713780643791,-500.0,0.00021917,2]
[323180152,1713780643800,-500.0,0.00021917,2]
[323180153,1713780643809,-500.0,0.00021917,2]
[323180154,1713780643818,-500.0,0.00021917,2]
[323180155,1713780643828,-500.0,0.00021917,2]
[323180156,1713780643837,-1370.86,0.00021917,2]
[323180157,1713780643847,-500.0,0.00021917,2]
[323180158,1713780643856,-622.67,0.00021917,2]
[323180159,1713780643866,-500.0,0.00021917,2]
[323180160,1713780643875,-500.0,0.00021917,2]
[323180161,1713780643884,-500.0,0.00021917,2]
[323180162,1713780643893,-500.0,0.00021917,2]
[323180163,1713780643903,-500.0,0.00021917,2]
[323180164,1713780643913,-200.0,0.00021917,2]
[323180165,1713780643922,-500.0,0.00021917,2]
[323180166,1713780643931,-500.0,0.00021917,2]
[323180167,1713780643940,-500.0,0.00021917,2]
[323180168,1713780643949,-630.05,0.00021917,2]
[323180169,1713780643958,-500.0,0.00021917,2]
[323180170,1713780643966,-500.0,0.00021917,2]
[323180171,1713780643975,-1326.55,0.00021917,2]
[323180172,1713780643984,-500.0,0.00021917,2]
[323180173,1713780643993,-500.0,0.00021917,2]
[323180174,1713780644003,-500.0,0.00021917,2]
[323180175,1713780644012,-500.0,0.00021917,2]
[323180176,1713780644033,-500.0,0.00021917,2]
[323180177,1713780644042,-500.0,0.00021917,2]
[323180178,1713780644052,-500.0,0.00021917,2]
[323180179,1713780644062,-603.56,0.00021917,2]
[323180180,1713780644073,-500.0,0.00021917,2]
[323180181,1713780644085,-621.29040509,0.00021917,2]
[323180182,1713780644096,-500.0,0.00021917,2]
[323180183,1713780644107,-500.0,0.00021917,2]
[323180184,1713780644119,-504.82378182,0.00021917,2]
[323180185,1713780644129,-500.0,0.00021917,2]
[323180186,1713780644138,-500.0,0.00021917,2]
[323180187,1713780644148,-178.20100148,0.00021917,2]
[323180188,1713780644157,-500.0,0.00021917,2]
[323180189,1713780644167,-758.54,0.00021917,2]
[323180190,1713780644176,-500.0,0.00021917,2]
[323180191,1713780644186,-500.0,0.00021917,2]
[323180192,1713780644195,-500.0,0.00021917,2]
[323180193,1713780644204,-622.76421091,0.00021917,2]
[323180194,1713780644213,-500.0,0.00021917,2]
[323180195,1713780644223,-500.0,0.00021917,2]
[323180196,1713780644233,-500.0,0.00021917,2]
[323180197,1713780644243,-500.0,0.00021917,2]
[323180198,1713780644253,-500.0,0.00021917,2]
[323180199,1713780644262,-500.0,0.00021917,2]
[323180200,1713780644271,-500.0,0.00021917,2]
[323180201,1713780644281,-554.96398746,0.00021917,2]
[323180202,1713780644290,-500.0,0.00021917,2]
[323180203,1713780644300,-151.0,0.00021917,2]
[323180204,1713780644310,-280.830328,0.00021917,2]
[323180205,1713780644319,-500.0,0.00021917,2]
[323180206,1713780644328,-518.32428352,0.00021917,2]
[323180207,1713780644338,-500.0,0.00021917,2]
[323180208,1713780644348,-500.0,0.00021917,2]
[323180209,1713780644359,-508.12802659,0.00021917,2]
[323180210,1713780644369,-516.71,0.00021917,2]
[323180211,1713780644379,-500.0,0.00021917,2]
[323180212,1713780644389,-500.0,0.00021917,2]
[323180213,1713780644399,-519.3781021,0.00021917,2]
[323180214,1713780644408,-500.0,0.00021917,2]
[323180215,1713780644419,-500.0,0.00021917,2]
[323180216,1713780644429,-467.98452266,0.00021917,2]
[323180217,1713780644438,-588.17450781,0.00021917,2]
[323180218,1713780644447,-500.0,0.00021917,2]
[323180219,1713780644456,-151.0,0.00021917,2]
[323180220,1713780644467,-500.0,0.00021917,2]
[323180221,1713780644477,-151.0,0.00021917,2]
[323180222,1713780644486,-151.0,0.00021917,2]
[323180223,1713780644495,-151.0,0.00021917,2]
[323180224,1713780644505,-500.0,0.00021917,2]
[323180225,1713780644514,-593.04,0.00021917,2]
[323180226,1713780644524,-500.0,0.00021917,2]
[323180227,1713780644533,-500.0,0.00021917,2]